[Event "European Women's Chess Championship (1-48)"]
[Site "Batumi, Georgia"]
[Date "2026.05.25"]
[Round "1.9"]
[White "Wagner, Dinara"]
[Black "Odisharia, Teona"]
[Result "1-0"]
[TimeControl "90min/ 40moves+ 30min+ 30-sec increment from move 1"]
[WhiteTitle "-"]
[BlackTitle "-"]
[WhiteFideId "24157570"]
[BlackFideId "13602322"]
[WhiteElo "2408"]
[BlackElo "2167"]

1. d4 {[%clk 01:30:57]} {[%emt 00:00:02]} Nf6 {[%clk 01:30:50]} {[%emt
00:00:11]} 2. c4 {[%clk 01:31:24]} {[%emt 00:00:03]} g6 {[%clk 01:31:13]}
{[%emt 00:00:06]} 3. Nc3 {[%clk 01:31:50]} {[%emt 00:00:04]} Bg7 {[%clk
01:31:33]} {[%emt 00:00:10]} 4. e4 {[%clk 01:32:13]} {[%emt 00:00:07]} d6
{[%clk 01:31:55]} {[%emt 00:00:07]} 5. Be2 {[%clk 01:32:39]} {[%emt 00:00:04]}
e5 {[%clk 01:21:54]} {[%emt 00:10:31]} 6. Nf3 {[%clk 01:31:09]} {[%emt
00:02:01]} O-O {[%clk 01:22:02]} {[%emt 00:00:22]} 7. d5 {[%clk 01:31:26]}
{[%emt 00:00:13]} a5 {[%clk 01:22:16]} {[%emt 00:00:16]} 8. Be3 {[%clk
01:31:42]} {[%emt 00:00:14]} Ng4 {[%clk 01:18:24]} {[%emt 00:04:22]} 9. Bg5
{[%clk 01:32:04]} {[%emt 00:00:08]} f6 {[%clk 01:18:20]} {[%emt 00:00:34]} 10.
Bh4 {[%clk 01:32:31]} {[%emt 00:00:03]} g5 {[%clk 01:17:30]} {[%emt 00:01:20]}
11. Bg3 {[%clk 01:32:36]} {[%emt 00:00:25]} Nh6 {[%clk 00:56:39]} {[%emt
00:21:21]} 12. Nd2 {[%clk 01:30:49]} {[%emt 00:02:17]} Na6 {[%clk 00:54:08]}
{[%emt 00:03:01]} 13. f3 {[%clk 01:30:10]} {[%emt 00:01:09]} Nc5 {[%clk
00:42:29]} {[%emt 00:12:09]} 14. Nb3 {[%clk 01:18:26]} {[%emt 00:12:14]} b6
{[%clk 00:37:13]} {[%emt 00:05:47]} 15. Nxc5 {[%clk 01:15:17]} {[%emt
00:03:39]} bxc5 {[%clk 00:37:35]} {[%emt 00:00:08]} 16. Qd3 {[%clk 01:14:17]}
{[%emt 00:01:30]} f5 {[%clk 00:37:04]} {[%emt 00:01:00]} 17. h3 {[%clk
01:14:06]} {[%emt 00:00:42]} Rb8 {[%clk 00:34:47]} {[%emt 00:02:47]} 18. O-O-O
{[%clk 01:14:01]} {[%emt 00:00:34]} Bd7 {[%clk 00:33:25]} {[%emt 00:01:52]} 19.
Nb5 {[%clk 01:07:16]} {[%emt 00:07:16]} Nf7 {[%clk 00:32:50]} {[%emt 00:01:04]}
20. Be1 {[%clk 00:59:17]} {[%emt 00:08:30]} c6 {[%clk 00:26:52]} {[%emt
00:06:29]} 21. dxc6 {[%clk 00:58:16]} {[%emt 00:01:31]} Bxc6 {[%clk 00:26:59]}
{[%emt 00:00:23]} 22. Bc3 {[%clk 00:57:27]} {[%emt 00:01:19]} d5 {[%clk
00:26:10]} {[%emt 00:01:19]} 23. exd5 {[%clk 00:51:37]} {[%emt 00:06:20]} Bxb5
{[%clk 00:25:52]} {[%emt 00:00:48]} 24. cxb5 {[%clk 00:52:03]} {[%emt
00:00:04]} Nd6 {[%clk 00:23:34]} {[%emt 00:02:47]} 25. Qc2 {[%clk 00:48:55]}
{[%emt 00:03:38]} Nxb5 {[%clk 00:22:35]} {[%emt 00:01:30]} 26. Bxb5 {[%clk
00:49:21]} {[%emt 00:00:04]} Rxb5 {[%clk 00:23:01]} {[%emt 00:00:03]} 27. d6
{[%clk 00:48:00]} {[%emt 00:01:53]} Qd7 {[%clk 00:21:42]} {[%emt 00:01:49]} 28.
g4 {[%clk 00:45:48]} {[%emt 00:02:42]} Rb6 {[%clk 00:16:03]} {[%emt 00:06:08]}
29. Qd2 {[%clk 00:38:49]} {[%emt 00:07:29]} Kh8 {[%clk 00:13:01]} {[%emt
00:03:32]} 30. Qxg5 {[%clk 00:29:14]} {[%emt 00:10:05]} Rxd6 {[%clk 00:09:43]}
{[%emt 00:03:48]} 31. Rxd6 {[%clk 00:26:34]} {[%emt 00:03:10]} Qxd6 {[%clk
00:10:08]} {[%emt 00:00:05]} 32. Rd1 {[%clk 00:27:03]} {[%emt 00:00:01]} Qg6
{[%clk 00:06:44]} {[%emt 00:03:53]} 33. Qxg6 {[%clk 00:25:26]} {[%emt
00:02:07]} hxg6 {[%clk 00:07:12]} {[%emt 00:00:02]} 34. Rd5 {[%clk 00:20:59]}
{[%emt 00:04:58]} e4 {[%clk 00:05:48]} {[%emt 00:01:54]} 35. Bxg7+ {[%clk
00:20:28]} {[%emt 00:01:01]} Kxg7 {[%clk 00:06:12]} {[%emt 00:00:05]} 36. fxe4
{[%clk 00:20:55]} {[%emt 00:00:03]} fxe4 {[%clk 00:06:26]} {[%emt 00:00:16]} 37.
Rxc5 {[%clk 00:20:35]} {[%emt 00:00:51]} e3 {[%clk 00:04:19]} {[%emt 00:02:37]}
38. Re5 {[%clk 00:19:52]} {[%emt 00:01:12]} Rf3 {[%clk 00:04:10]} {[%emt
00:00:39]} 39. Kc2 {[%clk 00:15:59]} {[%emt 00:04:24]} Rxh3 {[%clk 00:04:14]}
{[%emt 00:00:26]} 40. Rxa5 {[%clk 00:15:24]} {[%emt 00:01:05]} Rh2+ {[%clk
00:03:28]} {[%emt 00:01:15]} 41. Kd3 {[%clk 00:04:30]} {[%emt 00:11:24]} e2
{[%clk 00:03:02]} {[%emt 00:00:55]} 42. Re5 {[%clk 00:04:20]} {[%emt 00:00:40]}
e1=Q {[%clk 00:03:02]} {[%emt 00:00:31]} 43. Rxe1 {[%clk 00:04:48]} {[%emt
00:00:03]} Rxb2 {[%clk 00:03:26]} {[%emt 00:00:05]} 44. Re2 {[%clk 00:27:35]}
{[%emt 00:07:43]} Rb1 {[%clk 00:33:28]} {[%emt 00:00:28]} 45. a4 {[%clk
00:26:08]} {[%emt 00:01:58]} Kf6 {[%clk 00:11:42]} {[%emt 00:22:16]} 46. Re4
{[%clk 00:25:39]} {[%emt 00:00:59]} g5 {[%clk 00:11:18]} {[%emt 00:00:54]} 47.
Kc4 {[%clk 00:24:12]} {[%emt 00:01:56]} Rc1+ {[%clk 00:10:58]} {[%emt
00:00:50]} 48. Kb5 {[%clk 00:24:38]} {[%emt 00:00:04]} Rf1 {[%clk 00:10:45]}
{[%emt 00:00:43]} 49. a5 {[%clk 00:24:47]} {[%emt 00:00:22]} Rb1+ {[%clk
00:06:05]} {[%emt 00:05:09]} 50. Rb4 {[%clk 00:25:11]} {[%emt 00:00:06]} Ra1
{[%clk 00:06:25]} {[%emt 00:00:10]} 51. a6 {[%clk 00:25:30]} {[%emt 00:00:11]}
Ke6 {[%clk 00:06:27]} {[%emt 00:00:28]} 52. Kb6 {[%clk 00:25:22]} {[%emt
00:00:39]} Kd7 {[%clk 00:06:13]} {[%emt 00:00:44]} 53. Kb7 {[%clk 00:25:36]}
{[%emt 00:00:15]} Rc1 {[%clk 00:06:13]} {[%emt 00:00:30]} 54. a7 {[%clk
00:25:33]} {[%emt 00:00:34]} Rc7+ {[%clk 00:06:00]} {[%emt 00:00:42]} 55. Ka6
{[%clk 00:26:00]} {[%emt 00:00:02]} 1-0

[Event "European Women's Chess Championship (1-48)"]
[Site "Batumi, Georgia"]
[Date "2026.05.25"]
[Round "1.10"]
[White "Jimenez Fernandez, Rebeca"]
[Black "Salimova, Nurgyul"]
[Result "1/2-1/2"]
[TimeControl "90min/ 40moves+ 30min+ 30-sec increment from move 1"]
[WhiteTitle "-"]
[BlackTitle "-"]
[WhiteFideId "32070934"]
[BlackFideId "2915138"]
[WhiteElo "2166"]
[BlackElo "2404"]

1. e4 {[%clk 01:30:58]} {[%emt 00:00:01]} e5 {[%clk 01:30:43]} {[%emt
00:00:17]} 2. Nf3 {[%clk 01:31:18]} {[%emt 00:00:11]} Nc6 {[%clk 01:31:03]}
{[%emt 00:00:11]} 3. Bb5 {[%clk 01:31:40]} {[%emt 00:00:07]} a6 {[%clk
01:31:02]} {[%emt 00:00:30]} 4. Ba4 {[%clk 01:32:04]} {[%emt 00:00:06]} Nf6
{[%clk 01:31:19]} {[%emt 00:00:14]} 5. O-O {[%clk 01:32:15]} {[%emt 00:00:19]}
Be7 {[%clk 01:31:06]} {[%emt 00:00:43]} 6. Re1 {[%clk 01:32:39]} {[%emt
00:00:07]} b5 {[%clk 01:31:11]} {[%emt 00:00:25]} 7. Bb3 {[%clk 01:33:04]}
{[%emt 00:00:05]} O-O {[%clk 01:30:41]} {[%emt 00:00:59]} 8. h3 {[%clk
01:33:29]} {[%emt 00:00:05]} d6 {[%clk 01:23:33]} {[%emt 00:07:38]} 9. c3
{[%clk 01:33:53]} {[%emt 00:00:06]} Nb8 {[%clk 01:21:27]} {[%emt 00:02:36]} 10.
d4 {[%clk 01:33:55]} {[%emt 00:00:28]} Nbd7 {[%clk 01:21:53]} {[%emt 00:00:05]}
11. Nbd2 {[%clk 01:34:13]} {[%emt 00:00:11]} Bb7 {[%clk 01:19:41]} {[%emt
00:02:42]} 12. Bc2 {[%clk 01:34:36]} {[%emt 00:00:08]} Re8 {[%clk 01:17:48]}
{[%emt 00:02:23]} 13. Nf1 {[%clk 01:34:59]} {[%emt 00:00:06]} Bf8 {[%clk
01:17:57]} {[%emt 00:00:21]} 14. Ng3 {[%clk 01:35:23]} {[%emt 00:00:06]} h6
{[%clk 01:15:28]} {[%emt 00:03:00]} 15. a4 {[%clk 01:33:44]} {[%emt 00:02:09]}
bxa4 {[%clk 00:55:54]} {[%emt 00:20:04]} 16. Rxa4 {[%clk 01:29:09]} {[%emt
00:05:05]} exd4 {[%clk 00:46:15]} {[%emt 00:10:09]} 17. cxd4 {[%clk 01:27:05]}
{[%emt 00:02:34]} d5 {[%clk 00:46:02]} {[%emt 00:00:43]} 18. e5 {[%clk
01:02:34]} {[%emt 00:25:01]} Ne4 {[%clk 00:46:09]} {[%emt 00:00:23]} 19. Ra1
{[%clk 01:00:51]} {[%emt 00:02:13]} Bb4 {[%clk 00:32:07]} {[%emt 00:14:31]} 20.
Re2 {[%clk 00:49:50]} {[%emt 00:11:31]} Nxg3 {[%clk 00:29:51]} {[%emt
00:02:46]} 21. fxg3 {[%clk 00:50:02]} {[%emt 00:00:17]} c5 {[%clk 00:29:32]}
{[%emt 00:00:49]} 22. Kh2 {[%clk 00:43:10]} {[%emt 00:07:22]} a5 {[%clk
00:28:36]} {[%emt 00:01:27]} 23. Nh4 {[%clk 00:37:07]} {[%emt 00:06:33]} cxd4
{[%clk 00:24:57]} {[%emt 00:04:09]} 24. Qd3 {[%clk 00:25:17]} {[%emt 00:12:19]}
Nf8 {[%clk 00:24:28]} {[%emt 00:00:58]} 25. Qxd4 {[%clk 00:25:21]} {[%emt
00:00:27]} Qc8 {[%clk 00:15:16]} {[%emt 00:09:42]} 26. Bxh6 {[%clk 00:10:08]}
{[%emt 00:15:43]} Qc4 {[%clk 00:07:04]} {[%emt 00:08:42]} 27. Qxc4 {[%clk
00:03:31]} {[%emt 00:07:07]} dxc4 {[%clk 00:07:29]} {[%emt 00:00:05]} 28. Bf4
{[%clk 00:02:38]} {[%emt 00:01:23]} Ne6 {[%clk 00:07:49]} {[%emt 00:00:10]} 29.
Be3 {[%clk 00:02:01]} {[%emt 00:01:07]} c3 {[%clk 00:06:58]} {[%emt 00:01:21]}
30. bxc3 {[%clk 00:01:38]} {[%emt 00:00:53]} Bxc3 {[%clk 00:07:06]} {[%emt
00:00:22]} 31. Rb1 {[%clk 00:01:27]} {[%emt 00:00:41]} Ba6 {[%clk 00:05:43]}
{[%emt 00:01:53]} 32. Rf2 {[%clk 00:01:29]} {[%emt 00:00:28]} Bxe5 {[%clk
00:06:02]} {[%emt 00:00:11]} 33. Nf3 {[%clk 00:01:02]} {[%emt 00:00:57]} Bf6
{[%clk 00:03:45]} {[%emt 00:02:47]} 34. Bd2 {[%clk 00:00:46]} {[%emt 00:00:46]}
Bc4 {[%clk 00:01:45]} {[%emt 00:02:30]} 35. Ba4 {[%clk 00:00:52]} {[%emt
00:00:25]} Reb8 {[%clk 00:01:32]} {[%emt 00:00:43]} 36. Rc1 {[%clk 00:00:54]}
{[%emt 00:00:28]} Bd5 {[%clk 00:01:12]} {[%emt 00:00:50]} 37. Be1 {[%clk
00:00:44]} {[%emt 00:00:40]} Ra7 {[%clk 00:01:03]} {[%emt 00:00:40]} 38. Rd2
{[%clk 00:00:59]} {[%emt 00:00:14]} Be4 {[%clk 00:00:53]} {[%emt 00:00:40]} 39.
Ra2 {[%clk 00:00:56]} {[%emt 00:00:34]} Bd5 {[%clk 00:01:16]} {[%emt 00:00:07]}
40. Rd2 {[%clk 00:01:12]} {[%emt 00:00:13]} Be4 {[%clk 00:01:12]} {[%emt
00:00:34]} 41. Ra2 {[%clk 00:01:14]} {[%emt 00:00:29]} g6 {[%clk 00:15:06]}
{[%emt 00:16:36]} 42. Bd1 {[%clk 00:24:37]} {[%emt 00:07:07]} Rb5 {[%clk
00:09:28]} {[%emt 00:06:08]} 43. Be2 {[%clk 00:14:06]} {[%emt 00:11:01]} Rb2
{[%clk 00:08:39]} {[%emt 00:01:19]} 44. Rxb2 {[%clk 00:14:26]} {[%emt
00:00:10]} Bxb2 {[%clk 00:09:03]} {[%emt 00:00:05]} 45. Rc4 {[%clk 00:14:52]}
{[%emt 00:00:05]} Bxf3 {[%clk 00:07:27]} {[%emt 00:02:06]} 46. Bxf3 {[%clk
00:14:38]} {[%emt 00:00:44]} a4 {[%clk 00:06:44]} {[%emt 00:01:13]} 47. Rc8+
{[%clk 00:06:13]} {[%emt 00:08:55]} Kh7 {[%clk 00:06:27]} {[%emt 00:00:47]} 48.
Ra8 {[%clk 00:04:59]} {[%emt 00:01:45]} Rxa8 {[%clk 00:05:42]} {[%emt
00:01:15]} 49. Bxa8 {[%clk 00:05:24]} {[%emt 00:00:05]} Nc7 {[%clk 00:04:31]}
{[%emt 00:01:40]} 50. Be4 {[%clk 00:05:46]} {[%emt 00:00:08]} a3 {[%clk
00:04:08]} {[%emt 00:00:53]} 51. Bb1 {[%clk 00:06:10]} {[%emt 00:00:06]} Kg7
{[%clk 00:03:18]} {[%emt 00:01:19]} 52. Kg1 {[%clk 00:05:54]} {[%emt 00:00:47]}
Nd5 {[%clk 00:01:19]} {[%emt 00:02:29]} 53. Ba2 {[%clk 00:05:22]} {[%emt
00:01:02]} Bd4+ {[%clk 00:01:02]} {[%emt 00:00:47]} 54. Kf1 {[%clk 00:05:01]}
{[%emt 00:00:51]} Nc3 {[%clk 00:00:41]} {[%emt 00:00:51]} 55. Bxc3 {[%clk
00:05:20]} {[%emt 00:00:11]} Bxc3 {[%clk 00:01:07]} {[%emt 00:00:05]} 56. Ke2
{[%clk 00:05:35]} {[%emt 00:00:15]} f5 {[%clk 00:01:24]} {[%emt 00:00:13]} 57.
Kf3 {[%clk 00:02:14]} {[%emt 00:03:51]} Bd2 {[%clk 00:01:04]} {[%emt 00:00:50]}
58. h4 {[%clk 00:02:05]} {[%emt 00:00:39]} Kf6 {[%clk 00:00:53]} {[%emt
00:00:40]} 59. g4 {[%clk 00:02:20]} {[%emt 00:00:15]} f4 {[%clk 00:00:35]}
{[%emt 00:00:48]} 60. g3 {[%clk 00:02:43]} {[%emt 00:00:08]} fxg3 {[%clk
00:00:46]} {[%emt 00:00:20]} 61. Kxg3 {[%clk 00:03:08]} {[%emt 00:00:05]} Ke5
{[%clk 00:00:41]} {[%emt 00:00:34]} 62. Kf3 {[%clk 00:03:32]} {[%emt 00:00:06]}
Kd4 {[%clk 00:00:39]} {[%emt 00:00:31]} 63. g5 {[%clk 00:03:36]} {[%emt
00:00:26]} Ke5 {[%clk 00:00:40]} {[%emt 00:00:29]} 64. Kg4 {[%clk 00:04:00]}
{[%emt 00:00:06]} Bc1 {[%clk 00:00:52]} {[%emt 00:00:18]} 65. h5 {[%clk
00:04:23]} {[%emt 00:00:07]} gxh5+ {[%clk 00:01:17]} {[%emt 00:00:04]} 66. Kxh5
{[%clk 00:04:49]} {[%emt 00:00:04]} 1/2-1/2

[Event "European Women's Chess Championship (1-48)"]
[Site "Batumi, Georgia"]
[Date "2026.05.25"]
[Round "1.11"]
[White "Kiolbasa, Oliwia"]
[Black "Abdinova, Narmin"]
[Result "1-0"]
[TimeControl "90min/ 40moves+ 30min+ 30-sec increment from move 1"]
[WhiteTitle "-"]
[BlackTitle "-"]
[WhiteFideId "1154613"]
[BlackFideId "13425340"]
[WhiteElo "2397"]
[BlackElo "2165"]

1. e4 {[%clk 01:30:57]} {[%emt 00:00:02]} c5 {[%clk 01:30:52]} {[%emt
00:00:08]} 2. Nf3 {[%clk 01:31:21]} {[%emt 00:00:06]} d6 {[%clk 01:31:17]}
{[%emt 00:00:06]} 3. d4 {[%clk 01:31:46]} {[%emt 00:00:05]} cxd4 {[%clk
01:31:38]} {[%emt 00:00:08]} 4. Nxd4 {[%clk 01:32:10]} {[%emt 00:00:05]} Nf6
{[%clk 01:32:04]} {[%emt 00:00:05]} 5. Nc3 {[%clk 01:32:30]} {[%emt 00:00:10]}
a6 {[%clk 01:32:27]} {[%emt 00:00:06]} 6. g3 {[%clk 01:32:28]} {[%emt
00:00:32]} e5 {[%clk 01:32:50]} {[%emt 00:00:07]} 7. Nb3 {[%clk 01:32:52]}
{[%emt 00:00:06]} Be6 {[%clk 01:32:48]} {[%emt 00:00:32]} 8. Bg2 {[%clk
01:30:32]} {[%emt 00:02:49]} Be7 {[%clk 01:32:27]} {[%emt 00:00:50]} 9. O-O
{[%clk 01:30:03]} {[%emt 00:00:59]} O-O {[%clk 01:32:45]} {[%emt 00:00:12]} 10.
Re1 {[%clk 01:29:26]} {[%emt 00:01:07]} Nbd7 {[%clk 01:33:05]} {[%emt
00:00:11]} 11. a4 {[%clk 01:29:09]} {[%emt 00:00:48]} Qb8 {[%clk 01:33:27]}
{[%emt 00:00:07]} 12. a5 {[%clk 01:27:55]} {[%emt 00:01:45]} Rc8 {[%clk
01:32:34]} {[%emt 00:01:22]} 13. Nd5 {[%clk 01:25:04]} {[%emt 00:03:23]} Nxd5
{[%clk 01:29:35]} {[%emt 00:03:29]} 14. exd5 {[%clk 01:25:21]} {[%emt
00:00:13]} Bf5 {[%clk 01:30:01]} {[%emt 00:00:03]} 15. c3 {[%clk 01:23:46]}
{[%emt 00:02:06]} b6 {[%clk 01:12:28]} {[%emt 00:18:01]} 16. Nd4 {[%clk
01:03:22]} {[%emt 00:20:55]} exd4 {[%clk 01:11:10]} {[%emt 00:01:48]} 17. Rxe7
{[%clk 01:03:46]} {[%emt 00:00:07]} Kf8 {[%clk 00:57:55]} {[%emt 00:13:43]} 18.
Qf3 {[%clk 00:54:47]} {[%emt 00:09:30]} Kxe7 {[%clk 00:47:53]} {[%emt
00:10:31]} 19. Qxf5 {[%clk 00:55:08]} {[%emt 00:00:09]} h6 {[%clk 00:35:04]}
{[%emt 00:13:19]} 20. cxd4 {[%clk 00:51:05]} {[%emt 00:04:34]} bxa5 {[%clk
00:23:28]} {[%emt 00:12:06]} 21. Bh3 {[%clk 00:45:04]} {[%emt 00:06:31]} Rxc1+
{[%clk 00:17:51]} {[%emt 00:06:07]} 22. Rxc1 {[%clk 00:45:23]} {[%emt
00:00:12]} Nf6 {[%clk 00:18:15]} {[%emt 00:00:05]} 23. Qf4 {[%clk 00:33:14]}
{[%emt 00:12:39]} Qb4 {[%clk 00:17:08]} {[%emt 00:01:36]} 24. Rc6 {[%clk
00:22:35]} {[%emt 00:11:09]} Rd8 {[%clk 00:10:45]} {[%emt 00:06:53]} 25. Rxa6
{[%clk 00:19:54]} {[%emt 00:03:11]} Qxb2 {[%clk 00:09:47]} {[%emt 00:01:28]} 26.
Rxa5 {[%clk 00:09:30]} {[%emt 00:10:55]} Qb1+ {[%clk 00:10:11]} {[%emt
00:00:06]} 27. Bf1 {[%clk 00:09:43]} {[%emt 00:00:17]} Kf8 {[%clk 00:10:32]}
{[%emt 00:00:08]} 28. Rb5 {[%clk 00:08:27]} {[%emt 00:01:48]} Qe4 {[%clk
00:06:40]} {[%emt 00:04:20]} 29. Qxe4 {[%clk 00:01:25]} {[%emt 00:07:34]} Nxe4
{[%clk 00:07:07]} {[%emt 00:00:02]} 30. Rb6 {[%clk 00:01:19]} {[%emt 00:00:37]}
Nd2 {[%clk 00:04:20]} {[%emt 00:03:16]} 31. Be2 {[%clk 00:00:52]} {[%emt
00:00:58]} Re8 {[%clk 00:03:52]} {[%emt 00:00:58]} 32. Ba6 {[%clk 00:00:38]}
{[%emt 00:00:45]} Ne4 {[%clk 00:02:44]} {[%emt 00:01:37]} 33. f3 {[%clk
00:00:43]} {[%emt 00:00:26]} Nc3 {[%clk 00:02:19]} {[%emt 00:00:54]} 34. Rxd6
{[%clk 00:00:44]} {[%emt 00:00:31]} Re1+ {[%clk 00:01:01]} {[%emt 00:01:48]} 35.
Kf2 {[%clk 00:01:08]} {[%emt 00:00:05]} Rd1 {[%clk 00:01:25]} {[%emt 00:00:04]}
36. Bb7 {[%clk 00:00:36]} {[%emt 00:01:04]} Rxd4 {[%clk 00:00:54]} {[%emt
00:01:01]} 37. Bc6 {[%clk 00:00:36]} {[%emt 00:00:31]} Ke7 {[%clk 00:00:34]}
{[%emt 00:00:50]} 38. Rd7+ {[%clk 00:01:00]} {[%emt 00:00:06]} Kf6 {[%clk
00:00:59]} {[%emt 00:00:04]} 39. Ke3 {[%clk 00:00:45]} {[%emt 00:00:46]} Rd1
{[%clk 00:01:13]} {[%emt 00:00:15]} 40. h4 {[%clk 00:00:37]} {[%emt 00:00:39]}
h5 {[%clk 00:01:09]} {[%emt 00:00:33]} 41. g4 {[%clk 00:23:42]} {[%emt
00:07:24]} hxg4 {[%clk 00:24:32]} {[%emt 00:07:07]} 42. fxg4 {[%clk 00:20:57]}
{[%emt 00:03:13]} Rh1 {[%clk 00:20:48]} {[%emt 00:04:15]} 43. d6 {[%clk
00:13:23]} {[%emt 00:08:06]} Rh3+ {[%clk 00:16:40]} {[%emt 00:04:38]} 44. Kd2
{[%clk 00:10:41]} {[%emt 00:03:12]} Nb1+ {[%clk 00:09:48]} {[%emt 00:07:21]} 45.
Ke1 {[%clk 00:10:52]} {[%emt 00:00:18]} Na3 {[%clk 00:07:28]} {[%emt 00:02:45]}
46. Re7 {[%clk 00:03:46]} {[%emt 00:07:42]} Nc2+ {[%clk 00:04:12]} {[%emt
00:03:46]} 47. Kd2 {[%clk 00:03:45]} {[%emt 00:00:31]} Nd4 {[%clk 00:03:35]}
{[%emt 00:01:07]} 48. g5+ {[%clk 00:03:27]} {[%emt 00:00:49]} Kg6 {[%clk
00:03:53]} {[%emt 00:00:11]} 49. Be8 {[%clk 00:01:13]} {[%emt 00:02:46]} Nb3+
{[%clk 00:01:25]} {[%emt 00:02:57]} 50. Ke1 {[%clk 00:00:52]} {[%emt 00:00:51]}
Rh1+ {[%clk 00:00:47]} {[%emt 00:01:08]} 51. Kf2 {[%clk 00:01:08]} {[%emt
00:00:14]} Nc5 {[%clk 00:00:42]} {[%emt 00:00:33]} 52. Rxf7 {[%clk 00:00:40]}
{[%emt 00:01:00]} Kh7 {[%clk 00:00:34]} {[%emt 00:00:39]} 53. Rf8 {[%clk
00:00:36]} {[%emt 00:00:34]} Rxh4 {[%clk 00:00:37]} {[%emt 00:00:26]} 54. g6+
{[%clk 00:00:34]} {[%emt 00:00:33]} Kh6 {[%clk 00:01:05]} {[%emt 00:00:02]} 55.
Rh8+ {[%clk 00:00:35]} {[%emt 00:00:29]} Kg5 {[%clk 00:01:32]} {[%emt
00:00:03]} 56. Rxh4 {[%clk 00:00:35]} {[%emt 00:00:30]} Kxh4 {[%clk 00:01:59]}
{[%emt 00:00:03]} 57. Ke3 {[%clk 00:00:46]} {[%emt 00:00:19]} Kg5 {[%clk
00:01:24]} {[%emt 00:01:04]} 58. Kd4 {[%clk 00:01:08]} {[%emt 00:00:08]} Nb7
{[%clk 00:01:21]} {[%emt 00:00:32]} 59. Ke5 {[%clk 00:01:31]} {[%emt 00:00:09]}
Nc5 {[%clk 00:00:54]} {[%emt 00:00:56]} 60. Kd5 {[%clk 00:01:21]} {[%emt
00:00:40]} Nb7 {[%clk 00:00:49]} {[%emt 00:00:35]} 61. Ke6 {[%clk 00:01:44]}
{[%emt 00:00:07]} Na5 {[%clk 00:00:32]} {[%emt 00:00:47]} 62. Kf7 {[%clk
00:00:51]} {[%emt 00:01:23]} Kh6 {[%clk 00:00:59]} {[%emt 00:00:03]} 63. Ke7
{[%clk 00:00:39]} {[%emt 00:00:43]} Kg5 {[%clk 00:01:20]} {[%emt 00:00:09]} 64.
Kf7 {[%clk 00:00:36]} {[%emt 00:00:32]} Kh6 {[%clk 00:01:48]} {[%emt 00:00:02]}
65. Bb5 {[%clk 00:00:37]} {[%emt 00:00:29]} Nb7 {[%clk 00:01:45]} {[%emt
00:00:34]} 66. d7 {[%clk 00:00:51]} {[%emt 00:00:16]} Nd8+ {[%clk 00:00:45]}
{[%emt 00:01:27]} 67. Ke7 {[%clk 00:00:44]} {[%emt 00:00:39]} Nb7 {[%clk
00:01:13]} {[%emt 00:00:02]} 68. Bd3 {[%clk 00:01:06]} {[%emt 00:00:08]} Kh5
{[%emt 00:01:14]} 1-0